bitfinex-derivatives/quotes_SOLF0:USTF0_20240830
["timestamp","ask_amount","ask_price","bid_price","bid_amount"]
[1725057181219,0.05145292,136.98,136.88,12.27608362]
[1725057181220,9.02145292,136.98,136.88,12.27608362]
[1725057181421,0.04743207,136.94,136.91,8.97]
[1725057181622,0.04743207,136.94,136.92,8.97]
[1725057181926,0.04743207,136.94,136.93,3.6516]
[1725057185225,3.6499,137.0,136.98,3.6503]
[1725057185736,3.6499,137.0,136.97,3.6504]
[1725057185920,3.6499,137.0,136.96,8.97]
[1725057186123,0.04706007,136.99,136.97,0.04860319]
[1725057186325,0.04706007,136.99,136.97,3.69900319]
[1725057189527,0.04706007,136.99,136.98,3.6503]
[1725057191735,0.04706007,136.99,136.97,3.69900319]
[1725057197128,0.04706007,136.99,136.98,3.6503]
[1725057225346,10.11296659,137.51,136.98,3.6503]
[1725057225347,1.3303,137.06,136.98,8.97]
[1725057225557,2.6817,137.1,137.02,8.97]
[1725057225854,10.3495,137.1,137.06,3.6481]
[1725057226255,3.67359894,137.09,137.07,0.05390948]
[1725057226460,3.67359894,137.09,137.07,3.70170948]
[1725057226654,12.64359894,137.09,137.07,0.05390948]
[1725057227549,3.6476,137.08,137.07,0.05390948]
[1725057228454,12.64359894,137.09,137.07,0.05390948]
[1725057228656,16.29109894,137.09,137.07,0.05390948]
[1725057229156,12.64359894,137.09,137.07,3.70180948]
[1725057231058,0.04917584,137.09,137.08,3.6476]
[1725057240971,3.69657584,137.09,137.07,0.05390948]
[1725057241167,9.01917584,137.09,137.07,0.05390948]
[1725057242376,9.01917584,137.09,137.07,3.70180948]
[1725057244473,0.04917584,137.09,137.07,3.70180948]
[1725057250291,3.69657584,137.09,137.07,0.05390948]
[1725057250489,0.04917584,137.09,137.07,0.05390948]
[1725057250991,3.6476,137.08,137.07,0.05390948]
[1725057251790,3.6483,137.06,137.04,3.6486]
[1725057251990,12.6183,137.06,137.01,1.3733]
[1725057252384,3.649,137.03,136.95,7.302]
[1725057252586,3.649,137.03,136.97,8.97]
[1725057252922,0.04851366,137.01,136.99,0.04175377]
[1725057253292,0.04851366,137.01,137.0,3.6496]
[1725057262595,0.04851366,137.01,136.99,3.69165377]
[1725057263102,0.04851366,137.01,137.0,3.6498]
[1725057281111,0.04851366,137.01,136.99,0.04175377]
[1725057281406,8.97,137.0,136.99,0.04175377]
[1725057281704,3.6507,136.97,136.94,3.6513]
[1725057282605,3.70108187,136.97,136.94,3.6513]
[1725057284610,3.6509,136.96,136.93,3.6515]
[1725057284810,0.05038187,136.97,136.91,12.69171831]
[1725057285408,0.05038187,136.97,136.91,3.72171831]
[1725057285618,0.05038187,136.97,136.91,8.97]
[1725057285812,0.05038187,136.97,136.91,12.53620561]
[1725057286312,3.70098187,136.97,136.94,3.6513]
[1725057290518,0.05038187,136.97,136.95,3.651]
[1725057292314,0.05038187,136.97,136.96,3.6508]
[1725057301122,3.6494,137.02,136.96,8.97]
[1725057302114,0.05312456,137.0,136.98,0.04627755]
[1725057302319,0.05312456,137.0,136.99,3.6499]
[1725057314927,81.46661156,137.07,137.05,3.6484]
[1725057315123,3.64956582,137.06,137.01,3.59884193]
[1725057315331,8.97,137.04,137.01,3.6494]
[1725057315629,3.5820556,137.03,136.96,8.97]
[1725057315931,9.02181024,137.01,136.98,3.70372064]
[1725057316132,9.01889745,137.01,136.98,3.69845439]
[1725057316633,12.66849745,137.01,136.98,0.04825439]
[1725057316835,8.97,137.0,136.98,0.04825439]
[1725057317034,3.65958787,136.99,136.98,0.04825439]
[1725057317230,7.30958787,136.99,136.98,0.04825439]
[1725057317534,3.65958787,136.99,136.98,0.04825439]
[1725057319435,3.69849745,137.01,136.98,0.04825439]
[1725057320340,3.69849745,137.01,136.99,3.65]
[1725057326242,8.97,137.0,136.98,0.04825439]
[1725057326549,8.97,136.99,136.98,0.04825439]
[1725057326838,3.6499,137.0,136.98,0.04825439]
[1725057327043,0.04889745,137.01,136.98,0.04825439]
[1725057327244,3.64608386,137.0,136.98,0.04825439]
[1725057327542,3.64608386,137.0,136.98,3.69835439]
[1725057327742,3.69849745,137.01,136.98,3.69835439]
[1725057328345,3.56797956,137.0,136.98,3.69835439]
[1725057329331,7.21777956,137.0,136.98,3.69835439]
[1725057330039,7.21777956,137.0,136.98,0.04825439]
[1725057330634,7.21777956,137.0,136.98,3.69845439]
[1725057332778,3.69849745,137.01,136.98,3.69845439]
[1725057333044,0.04889745,137.01,136.98,3.69845439]
[1725057333943,3.6499,137.0,136.98,3.69845439]
[1725057334339,7.28211487,137.0,136.98,3.69845439]
[1725057339647,3.65,136.99,136.98,0.04825439]
[1725057343847,12.62,136.99,136.98,0.04825439]
[1725057344043,3.63221487,137.0,136.91,1.3359]
[1725057344044,12.6206,136.97,136.91,1.3359]
[1725057344443,3.6509,136.96,136.91,1.3359]
[1725057344639,3.70739938,136.96,136.86,7.3066]
[1725057344852,8.97,136.96,136.88,70.88647755]
[1725057345047,3.7071482,136.94,136.91,3.70340698]
[1725057346343,3.7071482,136.94,136.92,3.6518]
[1725057346553,0.0556482,136.94,136.92,8.97]
[1725057346740,0.0556482,136.94,136.93,8.97]
[1725057346946,35.88,137.08,136.95,3.6509]
[1725057346947,3.66868657,136.99,136.95,3.6509]
[1725057347148,3.6502,136.99,136.95,8.97]
[1725057347847,3.6502,136.99,136.96,3.6507]
[1725057348048,3.70023579,136.99,136.96,3.70184601]
[1725057348557,3.70023579,136.99,136.97,3.6505]
[1725057350153,0.05003579,136.99,136.97,3.6505]
[1725057350349,0.05003579,136.99,136.96,9.02114601]
[1725057350576,0.05003579,136.99,136.98,8.97]
[1725057351259,0.05003579,136.99,136.98,12.6203]
[1725057354758,81.46661156,137.07,136.98,12.6203]
[1725057354959,1.3359,137.1,137.02,8.97]
[1725057355157,13.95519951,137.1,137.03,8.97]
[1725057355350,10.3059,137.1,137.03,8.97]
[1725057355663,3.6474,137.09,137.03,8.97]
[1725057355862,0.04898952,137.07,137.05,0.04849943]
[1725057356108,0.04898952,137.07,137.06,3.6481]
[1725057358861,10.292,137.13,137.09,3.6471]
[1725057359055,13.99696564,137.13,137.06,8.97]
[1725057359663,1.4194,137.15,137.08,8.97]
[1725057359862,10.3758,137.18,137.11,8.97]
[1725057360170,0.04733618,137.16,137.14,3.6459]
[1725057360671,0.04733618,137.16,137.13,3.70061173]
[1725057360967,8.97,137.15,137.13,0.05451173]
[1725057361563,12.6159,137.15,137.13,0.05451173]
[1725057361771,16.33354963,137.15,137.13,0.05451173]
[1725057362474,3.646,137.14,137.13,0.05451173]
[1725057364775,12.616,137.14,137.13,0.05451173]
[1725057365966,8.97,137.14,137.13,0.05451173]
[1725057366672,12.616,137.14,137.13,0.05451173]
[1725057366874,8.97,137.12,137.05,8.97]
[1725057367776,0.05070957,137.1,137.07,0.04702816]
[1725057368377,0.05070957,137.1,137.09,3.6473]
[1725057368780,0.05070957,137.1,137.07,0.04702816]
[1725057368981,0.05070957,137.1,137.08,3.6475]
[1725057370179,0.05070957,137.1,137.07,3.69492816]
[1725057370974,3.69790957,137.1,137.07,3.69492816]
[1725057371179,0.05070957,137.1,137.07,0.04702816]
[1725057371775,0.05070957,137.1,137.07,3.69482816]
[1725057372178,3.69790957,137.1,137.07,3.69482816]
[1725057372588,0.05070957,137.1,137.07,3.69482816]
[1725057372889,8.97,137.09,137.07,0.04702816]
[1725057374090,0.05070957,137.1,137.07,0.04702816]
[1725057374485,3.6475,137.09,137.07,0.04702816]
[1725057375389,3.69800957,137.1,137.07,3.69482816]
[1725057377296,3.6474,137.09,137.07,3.69482816]
[1725057378195,3.69790957,137.1,137.07,3.69482816]
[1725057378993,3.6474,137.09,137.07,3.69482816]
[1725057380092,0.05070957,137.1,137.08,3.6475]
[1725057380295,0.05070957,137.1,137.07,0.04702816]
[1725057380797,0.05070957,137.1,137.08,3.6475]
[1725057381293,0.05070957,137.1,137.07,0.04702816]
[1725057381491,0.05070957,137.1,137.08,3.6475]
[1725057381686,3.69780957,137.1,137.08,3.6475]
[1725057381894,0.05070957,137.1,137.07,0.04702816]
[1725057382388,3.6475,137.09,137.07,0.04702816]
[1725057382597,3.60758172,137.08,137.07,0.04702816]
[1725057382902,12.6176,137.08,137.07,0.04702816]
[1725057383088,16.25508989,137.08,137.07,0.04702816]
[1725057383496,12.6176,137.08,137.07,0.04702816]
[1725057383887,1.3236,137.09,137.07,0.04702816]
[1725057384083,0.05070957,137.1,137.07,0.04702816]
[1725057384689,3.6475,137.09,137.07,0.04702816]
[1725057385992,0.05070957,137.1,137.07,0.04702816]
[1725057385993,3.69790957,137.1,137.07,3.69482816]
[1725057390504,0.05070957,137.1,137.07,0.04702816]
[1725057391198,0.05070957,137.1,137.08,3.6475]
[1725057396909,0.05070957,137.1,137.09,3.6474]
[1725057397906,0.05070957,137.1,137.08,3.6475]
[1725057401909,3.69790957,137.1,137.08,3.6475]
[1725057402131,0.05070957,137.1,137.07,3.69482816]
[1725057402609,0.05070957,137.1,137.07,0.04702816]
[1725057402610,3.6476,137.08,137.07,0.04702816]
[1725057404315,3.6475,137.09,137.07,0.04702816]
[1725057404611,3.6475,137.09,137.07,3.69482816]
[1725057406221,0.05070957,137.1,137.07,0.04702816]
[1725057406516,0.05070957,137.1,137.08,22.41]
[1725057406908,0.05070957,137.1,137.09,3.6474]
[1725057408317,0.05070957,137.1,137.09,12.6074]
[1725057419522,0.05070957,137.1,137.09,3.6474]
[1725057420831,0.05070957,137.1,137.07,3.72028446]
[1725057421027,0.05070957,137.1,137.07,0.04702816]
[1725057421430,0.05070957,137.1,137.07,12.60006644]
[1725057421623,0.05070957,137.1,137.09,8.96]
[1725057422331,0.05070957,137.1,137.09,12.6074]
[1725057441954,5.0375,137.15,137.12,3.6464]
[1725057442151,5.0375,137.15,137.12,12.6064]
[1725057442861,5.09253893,137.15,137.12,12.65840231]
[1725057444144,0.05503893,137.15,137.12,9.01200231]
[1725057444345,0.05503893,137.15,137.13,8.96]
[1725057444757,0.05503893,137.15,137.14,3.646]
[1725057449860,0.05503893,137.15,137.14,12.606]
[1725057450454,0.05503893,137.15,137.14,16.25210673]
[1725057450854,3.6446,137.2,137.17,3.645]
[1725057451855,3.69349049,137.2,137.17,3.69184395]
[1725057452455,3.69349049,137.2,137.18,3.645]
[1725057459966,3.6447,137.19,137.17,3.69194395]
[1725057460182,9.00889049,137.2,137.17,0.04684395]
[1725057460376,8.96,137.18,137.08,1.3349]
[1725057460565,8.96,137.18,137.12,8.96]
[1725057460566,7.34402055,137.17,137.12,8.96]
[1725057461166,3.6454,137.17,137.15,3.6457]
[1725057461465,3.70073562,137.17,137.15,0.05586522]
[1725057464871,7.30201082,137.16,137.15,0.05586522]
[1725057465075,9.01533562,137.17,137.08,1.3349]
[1725057465270,3.6467,137.12,137.09,8.96]
[1725057465469,3.6467,137.12,137.09,12.6072]
[1725057465666,3.6467,137.12,137.09,8.96]
[1725057465967,3.6464,137.13,137.09,8.96]
[1725057466173,3.6464,137.13,137.1,3.6469]
[1725057466174,0.04662973,137.12,137.1,3.6469]
[1725057466876,0.04662973,137.12,137.11,12.6068]
[1725057467876,0.04662973,137.12,137.11,8.96]
[1725057468277,0.04662973,137.12,137.1,3.647]
[1725057469979,0.04662973,137.12,137.09,12.66079681]
[1725057470976,3.69332973,137.12,137.09,12.66079681]
[1725057471879,3.6469,137.11,137.09,0.05359681]
[1725057472178,0.04662973,137.12,137.09,9.01359681]
[1725057472879,3.647,137.11,137.09,9.01359681]
[1725057473181,3.647,137.11,137.09,0.05359681]
[1725057473381,3.6471,137.1,137.09,0.05359681]
[1725057487798,3.69332973,137.12,137.09,3.70079681]
[1725057487991,3.69332973,137.12,137.09,9.01359681]
[1725057489003,3.69332973,137.12,137.1,3.647]
[1725057489498,0.04662973,137.12,137.11,3.6468]
[1725057489704,0.04662973,137.12,137.11,12.6068]
[1725057498011,1.3004,137.18,137.14,3.6459]
[1725057498208,1.3004,137.18,137.14,12.6059]
[1725057498402,3.6454,137.17,137.14,12.6059]
[1725057498811,3.6454,137.17,137.15,3.6458]
[1725057499010,3.69354,137.17,137.15,3.69897184]
[1725057503709,3.69354,137.17,137.15,0.05317184]
[1725057506912,3.6455,137.16,137.15,0.05317184]
[1725057509319,3.69344,137.17,137.15,3.69897184]
[1725057511326,3.69344,137.17,137.15,0.05317184]
[1725057512732,3.6455,137.16,137.15,0.05317184]
[1725057529335,3.69354,137.17,137.15,3.69897184]
[1725057532346,3.6455,137.16,137.15,3.69897184]
[1725057541060,3.6455,137.16,137.15,0.05317184]
[1725057545853,3.69354,137.17,137.15,3.69877184]
[1725057548145,3.6455,137.16,137.15,0.05317184]
[1725057548344,7.21358789,137.16,137.15,0.05317184]
[1725057549461,3.6455,137.16,137.15,0.05317184]
[1725057549757,3.69354,137.17,137.15,0.05317184]
[1725057551563,3.69354,137.17,137.15,3.69897184]
[1725057554856,0.04814,137.17,137.16,3.6455]
[1725057555263,0.04814,137.17,137.16,12.6055]
[1725057565273,3.6446,137.2,137.18,3.6449]
[1725057565470,3.6446,137.2,137.18,12.6049]
[1725057566167,3.69961799,137.2,137.18,12.6049]
[1725057566913,0.05501799,137.2,137.19,3.6447]
[1725057568076,0.05501799,137.2,137.19,12.6047]
[1725057569569,3.6432,137.25,137.22,3.6438]
[1725057569774,3.6432,137.25,137.22,12.6038]
[1725057569962,7.27949653,137.25,137.22,12.6038]
[1725057570666,7.32901513,137.25,137.22,12.65857916]
[1725057571076,3.68581513,137.25,137.22,0.05477916]
[1725057572178,3.6435,137.24,137.22,3.69867916]
[1725057585586,0.0495186,137.25,137.22,9.01477916]
[1725057586285,0.0495186,137.25,137.24,3.6434]
[1725057587487,3.6926186,137.25,137.23,3.6434]
[1725057588987,0.0495186,137.25,137.22,0.05477916]
[1725057589685,3.6437,137.23,137.22,0.05477916]
[1725057589891,8.96,137.25,137.15,1.4046]
[1725057590082,3.62003409,137.26,137.07,54.03085976]
[1725057590083,10.362,137.24,137.16,8.96]
[1725057590388,10.362,137.24,137.16,12.6053]
[1725057590389,3.6448,137.19,137.16,12.6053]
[1725057590883,3.6453,137.17,137.16,0.04816701]
[1725057591090,0.04924541,137.19,137.16,0.04816701]
[1725057591383,0.04924541,137.19,137.16,9.00816701]
[1725057591636,3.6452,137.18,137.16,9.00816701]
[1725057591983,0.04924541,137.19,137.16,9.00816701]
[1725057592184,3.69404541,137.19,137.16,12.65356701]
[1725057605798,3.645,137.18,137.16,12.65356701]
[1725057616010,0.04924541,137.19,137.16,9.00816701]
[1725057617220,3.645,137.18,137.16,12.65356701]
[1725057619111,0.04924541,137.19,137.16,0.04816701]
[1725057619312,3.6452,137.17,137.16,0.04816701]
[1725057620315,3.6451,137.18,137.16,0.04816701]
[1725057621720,3.6452,137.17,137.16,0.04816701]
[1725057623218,3.6452,137.17,137.11,8.96]
[1725057623219,3.6462,137.14,137.11,8.96]
[1725057623525,3.6462,137.14,137.11,12.6067]
[1725057624325,3.69510664,137.14,137.11,12.66267095]
[1725057633532,3.69510664,137.14,137.12,3.6465]
[1725057636673,0.04890664,137.14,137.11,0.05597095]
[1725057636838,9.00890664,137.14,137.11,0.05597095]
[1725057637027,3.6466,137.12,137.11,0.05597095]
[1725057637334,3.65402843,137.12,137.07,3.6477]
[1725057637528,11.8059,137.13,137.07,3.6477]
[1725057637734,3.6473,137.1,137.07,3.6477]
[1725057637930,3.6473,137.1,137.08,12.6076]
[1725057638134,3.6467,137.12,137.09,8.96]
[1725057638336,0.05056771,137.12,137.1,3.6469]
[1725057638526,0.05056771,137.12,137.11,8.96]
[1725057638922,0.05056771,137.12,137.11,12.6068]
[1725057639537,88.17984322,137.16,137.13,3.6461]
[1725057639835,3.6459,137.15,137.13,3.6461]
[1725057640031,3.6459,137.15,137.13,12.6061]
[1725057640536,3.70164209,137.15,137.13,12.66089317]
[1725057641872,3.70164209,137.15,137.13,3.70089317]
[1725057643533,3.646,137.14,137.13,0.05479317]
[1725057644039,0.05574209,137.15,137.13,0.05479317]
[1725057644235,3.70164209,137.15,137.13,3.70109317]
[1725057644842,3.646,137.14,137.13,0.05479317]
[1725057645239,8.96,137.15,137.04,4.1501]
[1725057645439,3.647,137.11,137.08,3.6475]
[1725057645637,84.53414322,137.16,137.1,8.96]
[1725057646140,0.04611632,137.14,137.13,8.96]
[1725057646535,1.3725,137.22,137.13,8.96]
[1725057646739,238.7013,137.28,137.17,8.96]
[1725057646740,8.96,137.25,137.17,8.96]
[1725057646933,12.61184163,137.25,137.17,8.96]
[1725057647140,3.6446,137.2,137.17,12.605]
[1725057647537,3.65184163,137.25,137.19,8.96]
[1725057647739,0.04906519,137.23,137.19,8.96]
[1725057648035,0.04906519,137.23,137.21,0.05603408]
[1725057648242,0.05053381,137.23,137.21,0.05046365]
[1725057648446,9.01053381,137.23,137.21,0.05046365]
[1725057648935,3.6439,137.22,137.21,0.05046365]
[1725057649337,9.01053381,137.23,137.16,12.6053]
[1725057650336,3.6446,137.2,137.18,0.05161546]
[1725057650636,7.31313768,137.2,137.18,0.05161546]
[1725057650842,3.6446,137.2,137.18,0.05161546]
[1725057651544,3.6447,137.19,137.18,0.05161546]
[1725057657845,0.0552333,137.2,137.18,3.69651546]
[1725057658043,0.0552333,137.2,137.19,8.96]
[1725057658448,0.0552333,137.2,137.19,12.6047]
[1725057662243,3.6433,137.25,137.22,3.6437]
[1725057663248,3.6434,137.24,137.22,3.69807369]
[1725057664952,3.69430374,137.25,137.22,3.69807369]
[1725057665851,3.6434,137.24,137.22,3.69807369]
[1725057666957,0.05100374,137.25,137.22,3.69807369]
[1725057666958,3.69420374,137.25,137.23,3.6437]
[1725057667151,0.05100374,137.25,137.23,3.6437]
[1725057672555,3.69410374,137.25,137.23,3.6437]
[1725057680460,0.05100374,137.25,137.24,3.6434]
[1725057681963,0.05100374,137.25,137.24,12.6034]
[1725057684868,0.05100374,137.25,137.24,3.6434]
[1725057685070,0.05100374,137.25,137.24,12.6034]
[1725057685372,0.05100374,137.25,137.22,0.05437369]
[1725057685867,3.6437,137.23,137.22,0.05437369]
[1725057686485,3.6435,137.24,137.22,0.05437369]
[1725057688170,3.6437,137.23,137.22,0.05437369]
[1725057698091,3.6437,137.23,137.14,3.72741352]
[1725057698092,8.96,137.23,137.14,3.72741352]
[1725057698376,8.96,137.23,137.16,8.96]
[1725057698581,3.6449,137.19,137.16,12.6054]
[1725057698777,7.22209948,137.19,137.16,12.6054]
[1725057698974,7.22209948,137.19,137.16,12.6538506]
[1725057698975,7.2772633,137.19,137.16,12.6538506]
[1725057699780,0.05516382,137.19,137.17,3.6451]
[1725057699976,0.05516382,137.19,137.18,8.96]
[1725057700481,0.05516382,137.19,137.18,12.605]
[1725057713407,0.05516382,137.19,137.17,8.96]
[1725057714409,0.05516382,137.19,137.18,3.645]
[1725057715312,0.05516382,137.19,137.18,12.605]
[1725057717306,0.05516382,137.19,137.18,3.645]
[1725057724252,0.05516382,137.19,137.18,12.605]
[1725057727820,104.16160642,137.27,137.21,12.604]
[1725057728117,104.16160642,137.27,137.21,8.96]
[1725057728312,3.6435,137.24,137.22,3.6438]
[1725057728717,3.69706806,137.24,137.22,3.69725272]
[1725057731006,3.6437,137.23,137.22,0.05345272]
[1725057732907,3.69706806,137.24,137.22,3.69715272]
[1725057733918,3.6437,137.23,137.22,0.05345272]
[1725057734419,0.05356806,137.24,137.22,0.05345272]
[1725057734619,3.69706806,137.24,137.22,3.69735272]
[1725057745121,3.6437,137.23,137.22,0.05345272]
[1725057745318,8.96,137.23,137.16,8.96]
[1725057745624,1.3443,137.22,137.16,8.96]
[1725057745921,3.6446,137.2,137.18,3.6448]
[1725057746127,3.6446,137.2,137.14,5.02605806]
[1725057746420,0.04634499,137.18,137.17,3.6452]
[1725057749115,3.69134499,137.18,137.16,0.05611561]
[1725057749721,3.6452,137.17,137.16,0.05611561]
[1725057752413,3.69144499,137.18,137.16,0.05611561]
[1725057752617,0.04634499,137.18,137.16,0.05611561]
[1725057753321,3.6452,137.17,137.16,0.05611561]
[1725057753521,0.04634499,137.18,137.16,0.05611561]
[1725057754731,3.6452,137.17,137.16,0.05611561]
[1725057755328,5.0668,137.17,137.16,0.05611561]
[1725057764438,14.0268,137.17,137.16,0.05611561]
[1725057766623,5.0668,137.17,137.16,0.05611561]
[1725057789551,14.0268,137.17,137.16,0.05611561]
[1725057791452,3.6467,137.12,137.08,1.3983]
[1725057792252,7.36499246,137.12,137.08,1.3983]
[1725057792551,0.05306632,137.11,137.1,3.6471]
[1725057794456,3.69996632,137.11,137.09,3.69905083]
[1725057795050,3.69996632,137.11,137.09,0.05185083]
[1725057796257,3.6471,137.1,137.09,0.05185083]
[1725057805065,12.6071,137.1,137.09,0.05185083]
[1725057807680,3.6471,137.1,137.09,0.05185083]
[1725057807978,12.6071,137.1,137.09,0.05185083]
[1725057810576,3.6471,137.1,137.09,0.05185083]
[1725057816083,12.6071,137.1,137.09,0.05185083]
[1725057832198,3.69996632,137.11,137.09,0.05185083]
[1725057832585,0.05306632,137.11,137.09,0.05185083]
[1725057833395,3.6471,137.1,137.09,0.05185083]
[1725057836393,3.70006632,137.11,137.09,0.05185083]
[1725057836790,0.05306632,137.11,137.09,0.05185083]
[1725057838434,0.05306632,137.11,137.1,3.6471]
[1725057839895,3.69986632,137.11,137.09,3.69905083]
[1725057842492,0.05306632,137.11,137.09,3.69905083]
[1725057843999,0.05306632,137.11,137.1,3.6471]
[1725057852798,85.6147193,137.16,137.13,3.6463]
[1725057853210,85.6147193,137.16,137.14,3.6459]
[1725057853400,12.61524781,137.2,137.12,8.96]
[1725057853798,0.05030129,137.17,137.15,0.05171463]
[1725057854305,3.69560129,137.17,137.15,3.69731463]
[1725057858603,0.05030129,137.17,137.15,3.69731463]
[1725057864213,3.69560129,137.17,137.15,3.69731463]
[1725057869618,3.6455,137.16,137.15,0.05171463]
[1725057869919,12.6055,137.16,137.15,0.05171463]
[1725057904856,3.6455,137.16,137.15,0.05171463]
[1725057905052,0.05030129,137.17,137.15,0.05171463]
[1725057906354,3.6455,137.16,137.15,0.05171463]
[1725057912874,16.19926753,137.16,137.15,0.05171463]
[1725057922776,7.23926753,137.16,137.15,0.05171463]
[1725057923481,3.59376753,137.16,137.15,0.05171463]
[1725057923677,0.05030129,137.17,137.15,0.05171463]
[1725057924487,0.05030129,137.17,137.16,3.6455]
[1725057924884,0.05030129,137.17,137.15,3.69731463]
[1725057927181,3.69560129,137.17,137.15,3.69731463]
[1725057927380,8.96,137.16,137.15,0.05171463]
[1725057927582,8.96,137.16,137.08,2.7251]
[1725057927782,3.6467,137.12,137.08,2.7251]
[1725057928182,3.6467,137.12,137.09,3.6472]
[1725057928587,7.3216328,137.12,137.09,3.69931523]
[1725057928883,3.69279647,137.12,137.09,3.69931523]
[1725057933194,3.69279647,137.12,137.1,3.6471]
[1725057933589,0.04609647,137.12,137.09,9.01211523]
[1725057933998,0.04609647,137.12,137.11,12.6068]
[1725057935792,0.04609647,137.12,137.11,3.6468]
[1725057945798,0.04609647,137.12,137.09,0.05211523]
[1725057946199,3.6471,137.11,137.09,0.05211523]
[1725057946603,0.04609647,137.12,137.09,0.05211523]
[1725057946801,0.04609647,137.12,137.09,9.01211523]
[1725057947402,0.04609647,137.12,137.09,0.05211523]
[1725057947602,0.04609647,137.12,137.09,9.01211523]
[1725057947806,0.04609647,137.12,137.1,3.6469]
[1725057948007,0.04609647,137.12,137.09,0.05211523]
[1725057948505,0.04609647,137.12,137.1,3.647]
[1725057949302,3.69279647,137.12,137.1,3.647]
[1725057949507,3.69279647,137.12,137.09,3.69941523]
[1725057951196,3.6469,137.11,137.09,3.69941523]
[1725057953200,3.6469,137.11,137.09,0.05211523]
[1725057954400,3.6469,137.11,137.09,3.69941523]
[1725057954997,0.04609647,137.12,137.09,0.05211523]
[1725057955207,0.04609647,137.12,137.1,8.96]
[1725057956301,0.04609647,137.12,137.11,3.6468]
[1725057956706,3.60267936,137.16,137.11,8.96]
[1725057956906,3.6459,137.15,137.12,3.6464]
[1725057957127,3.6459,137.15,137.11,8.96]
[1725057957402,3.6457,137.16,137.13,3.6461]
[1725057957811,3.69332584,137.16,137.13,3.69862737]
[1725057958900,3.69332584,137.16,137.14,3.646]
[1725057959210,0.04762584,137.16,137.14,8.96]
[1725057959903,0.04762584,137.16,137.14,3.646]
[1725057960303,0.04762584,137.16,137.15,3.6458]
[1725057960701,0.04762584,137.16,137.13,9.01252737]
[1725057961113,0.04762584,137.16,137.14,3.6459]
[1725057962218,0.04762584,137.16,137.14,3.646]
[1725057962713,0.04762584,137.16,137.15,3.6458]
[1725057988532,0.04762584,137.16,137.15,12.6058]
[1725057992631,3.6442,137.21,137.18,3.6449]
[1725057993639,3.6444,137.2,137.18,3.69331317]
[1725057996337,3.69686998,137.21,137.19,3.6446]
[1725057997340,3.69686998,137.21,137.19,12.6046]
[1725058000740,0.05256998,137.21,137.19,12.6046]
[1725058005243,3.69676998,137.21,137.19,12.6046]
[1725058008040,0.05256998,137.21,137.2,8.96]
[1725058008344,4.2249,137.28,137.2,12.6360204]
[1725058008539,2.7983,137.28,137.25,3.643]
[1725058009338,2.85254979,137.28,137.25,0.05114035]
[1725058009840,3.6427,137.27,137.25,0.05114035]
[1725058010936,6.49504979,137.28,137.25,3.69414035]
[1725058013046,2.85254979,137.28,137.26,3.6428]
[1725058014242,0.05424979,137.28,137.26,3.6428]
[1725058014545,0.05424979,137.28,137.27,12.6026]
[1725058015239,0.05424979,137.28,137.27,3.6426]
[1725058019843,0.05424979,137.28,137.25,0.05114035]
[1725058020042,8.96,137.27,137.25,0.05114035]
[1725058020243,12.6028,137.27,137.25,0.05114035]
[1725058020448,10.3332,137.27,137.25,0.05114035]
[1725058021245,3.6429,137.26,137.25,0.05114035]
[1725058022257,5.0159,137.27,137.25,0.05114035]
[1725058023258,3.6429,137.26,137.25,0.05114035]
[1725058023457,10.3332,137.27,137.19,8.96]
[1725058023958,10.3332,137.27,137.21,3.644]
[1725058024557,3.6434,137.24,137.23,0.05026621]
[1725058024750,7.33401498,137.24,137.23,0.05026621]
[1725058026553,7.33401498,137.24,137.17,1.3079]
[1725058026554,12.65061498,137.24,137.17,8.96]
[1725058027055,12.65061498,137.24,137.19,3.6446]
[1725058027056,3.6441,137.22,137.19,3.6446]
[1725058027465,3.69609711,137.22,137.19,3.69861875]
[1725058034572,3.6442,137.21,137.19,3.69861875]
[1725058035363,0.05199711,137.22,137.2,3.6444]
[1725058036969,0.05199711,137.22,137.21,3.6442]
[1725058038265,0.05199711,137.22,137.21,12.6042]
[1725058044166,0.05199711,137.22,137.21,3.6442]
[1725058044369,0.05199711,137.22,137.19,0.05401875]
[1725058044965,3.6444,137.21,137.19,3.69861875]
[1725058048185,3.69609711,137.22,137.19,3.69861875]